Cogmind - Beta 16.1 @@@ ROGUE MODE // 2026.05.02 @ 22:28:11 Player: SunShine214 Result: Destroyed self with Subdweller Shrapnel Launcher Performance ------------- Evolutions (0) 0 Regions Visited (2) 400 Robots Destroyed (29) 145 Value Destroyed (576) 576 Prototype IDs (0) 0 Alien Tech Used (0) 0 Bonus (-18) -18 TOTAL SCORE: 1103 Bonus ------- Friendly Fire -18 Cogmind --------- Core Integrity 0/250 Matter 211/300 Energy 75/100 System Corruption 11% Temperature Cool (0) Movement Treading (160) Location -10/Subcaves Parts ------- > --- POWER (1) -------- (None) > --- PROPULSION (2) --- Light Treads Light Treads > --- UTILITY (2) ------ Medium Storage Unit > --- WEAPON (2) ------- Subdweller Shrapnel Launcher > --- INVENTORY (10) --- Light Treads VTOL Module VTOL Module Hacking Suite Heavy Assault Rifle Heavy Assault Rifle Peak State ------------ > --- POWER ------------ Ion Engine > --- PROPULSION ------- Light Treads Light Treads > --- UTILITY ---------- Medium Storage Unit Seismic Detector > --- WEAPON ----------- Heavy Assault Rifle Heavy Assault Rifle > --- INVENTORY -------- Light Treads VTOL Module Small Storage Unit Light Assault Rifle Heavy Assault Rifle Heavy Assault Rifle Mining Laser Hammer [Rating: 10] Favorites ----------- Power Ion Engine Engine Ion Engine Propulsion Light Treads Treads Light Treads Utility Seismic Detector Device Seismic Detector Storage Medium Storage Unit Weapon Heavy Assault Rifle Energy Gun Medium Laser Ballistic Gun Heavy Assault Rifle Launcher Grenade Launcher Impact Weapon Hammer Build | -11 -10 -10 ------- Run | Yrd Mat Sub Slots Evolved . | . . . Power . | . . . Propulsion . | . . . Utility . | . . . Weapon . | . . . Parts Attached 19 | 7 6 6 Power 1 | 1 . . Engine 1 | 1 . . Core . | . . . Reactor . | . . . Propulsion 4 | 2 1 1 Treads 4 | 2 1 1 Leg . | . . . Wheel . | . . . Hover . | . . . Flight . | . . . Utility 3 | 2 1 . Device 1 | 1 . . Storage 2 | 1 1 . Processor . | . . . Hackware . | . . . Protection . | . . . Artifact . | . . . Weapon 11 | 2 4 5 Energy Gun 1 | 1 . . Energy Cannon . | . . . Ballistic Gun 5 | 1 4 . Ballistic Cannon . | . . . Launcher 4 | . . 4 Special Weapon . | . . . Impact Weapon 1 | . . 1 Slashing Weapon . | . . . Piercing Weapon . | . . . Special Melee Weapon . | . . . Unidentified Prototypes . | . . . Parts Lost 7 | . . 7 Power 1 | . . 1 Propulsion 1 | . . 1 Utility 1 | . . 1 Weapon 4 | . . 4 Highest Loss Streak 3 | . . 3 To Critical Strikes . | . . . Average Backups 7 | . 7 8 Power . | . . . Propulsion 3 | . 2 3 Utility . | . . 1 Weapon 4 | . 4 4 Tool/Special . | . . . Unused Backups 6 | . 2 4 Power . | . . . Propulsion 2 | . . 2 Utility 1 | . . 1 Weapon 3 | . 2 1 Tool/Special . | . . . Average Slot Usage (%) 96 | . 100 92 Engine 11 | . 14 9 Treads 28 | . 28 28 Device 12 | . 14 11 Storage 14 | . 14 14 Energy Gun 2 | . 3 . Ballistic Gun 14 | . 24 3 Launcher 6 | . . 12 Impact Weapon 5 | . . 10 Peak Build Rating 10 | 7 10 10 Average Rating 8 | 5 9 7 On Entrance 5 | . 7 10 Avg Prop Armor Cover (%) . | . . . Naked Turns . | . . . Heaviest Build 22 | 14 22 22 Greatest Support 40 | 40 40 40 Greatest Overweight (x) . | . . . Average Overweight (x) . | . . . Largest Inventory Capacity 10 | 8 10 10 Average Capacity 9 | 7 9 10 Most Carried 10 | 1 10 10 Average Carried 7 | . 7 8 Final Capacity 10 | 8 10 10 Final Carried 10 | 1 10 6 Class Distribution -------------------- 100% | Mutant Dominant Class ---------------- Mutant | -10/Materials Mutant | -10/Subcaves Resources | -11 -10 -10 ----------- Run | Yrd Mat Sub Matter Collected 659 | 267 236 156 Remotely . | . . . Salvage Created 740 | 128 354 258 Parts 43 | 11 18 14 Haulers Intercepted 2 | . 2 . Recyclers Shooed 2 | 1 1 . Parts Field Recycled . | . . . Retrieved Matter . | . . . Parts Self-Destructed 9 | . . 9 Prevented . | . . . Parts Restored . | . . . Kills | -11 -10 -10 ------- Run | Yrd Mat Sub Combat Hostiles Destroyed 21 | . 7 14 Melee 1 | . . 1 Guns 8 | . 7 1 AOE 12 | . . 12 Classes Destroyed 9 | 2 5 2 Worker 1 | . 1 . Tunneler 3 | 3 . . Hauler 2 | . 2 . Recycler 1 | 1 . . Operator 1 | . 1 . Swarmer 10 | . 3 7 Grunt 5 | . 4 1 Sentry 1 | . . 1 Subdweller 5 | . . 5 Best Kill Streak 6 | 4 3 6 Combat Bots Only 6 | . 2 6 Max Kills in Single Turn 3 | 1 1 3 Gunslinging . | . . . Exploded 3 | . . 3 Melee 1 | . . 1 Uniques/NPCs Destroyed . | . . . Combat | -11 -10 -10 -------- Run | Yrd Mat Sub Hostile Shots Fired 83 | . 47 36 Missed 17 | . 11 6 Hits 66 | . 36 30 Projectile 66 | . 36 30 Critical Strikes 1 | . 1 . Damage Taken 1370 | . 410 960 Core 258 | . 116 142 Absorbed by Shields . | . . . Core Remaining (%) 100 | 100 . . Volleys Fired 61 | 11 37 13 Largest 2 | 2 2 2 Hottest 70 | 70 70 53 Shots Fired 113 | 22 74 17 Gun 100 | 22 74 4 Cannon . | . . . Launcher 13 | . . 13 Special . | . . . Kinetic 81 | 11 64 6 Thermal 21 | 11 10 . Explosive 11 | . . 11 Electromagnetic . | . . . Robot Hit Streak 7 | 4 7 7 Robot Miss Streak 3 | 3 2 2 Penetration Max . | . . . Secondary Targets 1 | . 1 . Max Gunslinging Chain 1 | . 1 . Shots Hit Robots 74 | 11 44 19 Core Hits 42 | 6 17 19 Critical Kills 1 | . . 1 Critical Parts Destroyed 1 | . . 1 Critical Strikes 3 | . . 3 Smash 3 | . . 3 Melee Attacks 25 | . . 25 Impact 25 | . . 25 Slashing . | . . . Piercing . | . . . Sneak Attacks . | . . . Combat Hostiles . | . . . Follow-up Attacks . | . . . Damage Inflicted 1889 | 123 651 1115 Guns 790 | 121 626 43 Cannons . | . . . Explosions 909 | . . 909 Melee 163 | . . 163 Ramming 27 | 2 25 . Kinetic 794 | 35 529 230 Thermal 183 | 86 97 . Explosive 722 | . . 722 Electromagnetic . | . . . Impact 163 | . . 163 Slashing . | . . . Piercing . | . . . Highest Corruption 11 | . . 11 Average Corruption 11 | . . 11 Corruption Purged . | . . . Corruption Blocked . | . . . Effects 12 | . . 12 Message Errors 4 | . . 4 Matter Fused 3 | . . 3 Heat Flow Errors 1 | . . 1 Energy Discharges 1 | . . 1 Data Loss (minor) 2 | . . 2 Data Loss (major) 1 | . . 1 Overload Shots . | . . . Overflow Damage 48 | . . 48 Projectiles . | . . . Explosions 28 | . . 28 Melee 20 | . . 20 Knockbacks . | . . . Impact . | . . . Kinetic . | . . . Secondary . | . . . Self-Inflicted Damage 107 | . . 107 Shots 6 | . . 6 Rammed 8 | 1 7 . Targets Rammed 9 | 1 8 . Kicked . | . . . Crushed 1 | . 1 . Highest Temperature 215 | 150 215 178 Average Temperature 72 | 71 71 90 Received Heat Transfer 315 | . 180 135 Siege Activations . | . . . Martial Activations . | . . . Shielding Activations . | . . . Robots Disrupted . | . . . Combat Hostiles . | . . . Robots Corrupted . | . . . Combat Hostiles . | . . . Parts Fried . | . . . Impact Corruptions 1 | . . 1 Robots Melted . | . . . Combat Hostiles . | . . . Parts Melted . | . . . Heat Transferred 555 | 259 296 . Parts Sabotaged . | . . . Parts Stolen . | . . . Parts Stripped . | . . . Power Chain Reactions . | . . . Alert | -11 -10 -10 ------- Run | Yrd Mat Sub Maximum Alert Level . | . . . Low Security (%) 100 | 100 100 . Level 1 . | . . . Level 2 . | . . . Level 3 . | . . . Level 4 . | . . . Level 5 . | . . . High Security . | . . . Max Security . | . . . Peak Influence 72 | 10 72 . Initial . | . . . Average 13 | 1 14 . Influence Increases 468 | 20 228 220 Destroy 0b10 Robot/C 320 | . 140 180 Destroy 0b10 Robot/NC 40 | 20 20 . Destroy Leader 54 | . 44 10 Successful Hack 8 | . 8 . Destroy Structure 1 | . 1 . Lose Combat Pursuer 45 | . 15 30 Influence Decreases 468 | 20 228 220 Time Decay 468 | 20 228 220 Squads Dispatched 4 | . 4 . Investigation . | . . . Extermination . | . . . Reinforcement 4 | . 4 . Assault . | . . . Garrison . | . . . Intercept . | . . . Searches Triggered . | . . . Construction Impeded . | . . . Haulers Reinforced . | . . . Active Scanning Responses . | . . . Cargo Convoy Interrupts . | . . . Stealth | -11 -10 -10 --------- Run | Yrd Mat Sub Distress Signals 2 | . 2 . Communications Jammed . | . . . Distress Signals . | . . . Times Spotted 28 | . 13 15 Peak Tracking Total 4 | . 3 4 Tactical Retreats 2 | . 1 1 Traps | -11 -10 -10 ------- Run | Yrd Mat Sub Traps Triggered . | . . . Indirectly . | . . . Trap Hack Attempts . | . . . Triggered . | . . . Disarmed . | . . . Reprogrammed . | . . . Reused . | . . . Traps Extracted . | . . . Installed . | . . . Triggered . | . . . Machines | -11 -10 -10 ---------- Run | Yrd Mat Sub Machines Disabled . | . . . Max in Single Turn . | . . . Machines Repaired . | . . . Machines Dismantled . | . . . Machines Sabotaged . | . . . Overloaded Fab Kills . | . . . Hacking | -11 -10 -10 --------- Run | Yrd Mat Sub Machines Accessed 2 | . 2 . Terminals 2 | . 2 . Fabricators . | . . . Repair Stations . | . . . Recycling Units . | . . . Scanalyzers . | . . . Garrison Access . | . . . Total Hacks 5 | . 5 . Successful 2 | . 2 . Failed 3 | . 3 . Catastrophic 1 | . 1 . Database Lockouts . | . . . Manual 5 | . 5 . Terminals 5 | . 5 . Fabricators . | . . . Repair Stations . | . . . Recycling Units . | . . . Scanalyzers . | . . . Garrison Access . | . . . Terminal Hacks 2 | . 2 . Hauler Manifests 1 | . 1 . Registered Components 1 | . 1 . Fabricator Hacks . | . . . Repair Station Hacks . | . . . Recycling Unit Hacks . | . . . Scanalyzer . | . . . Garrison Access Hacks . | . . . Unauthorized Hacks . | . . . Terminals . | . . . Fabricators . | . . . Repair Stations . | . . . Recycling Units . | . . . Scanalyzers . | . . . Garrison Access . | . . . Data Cores Recovered . | . . . Used . | . . . Hacking Detections 1 | . 1 . Full Trace Events . | . . . Feedback Events . | . . . Feedback Blocked . | . . . Robot Schematics Acquired . | . . . Robots Built . | . . . Authchips . | . . . Time . | . . . Total Robot Build Rating . | . . . Part Schematics Acquired . | . . . Parts Built . | . . . Authchips . | . . . Time . | . . . Total Part Build Rating . | . . . Part Studies Acquired . | . . . Parts Repaired . | . . . Time . | . . . Parts Recycled . | . . . Recycled Matter . | . . . Retrieved Matter . | . . . Retrieved Components . | . . . Parts Scanalyzed . | . . . Part Schematics Acquired . | . . . Parts Damaged . | . . . Bothacking | -11 -10 -10 ------------ Run | Yrd Mat Sub Used RIF Installer . | . . . Robots Hacked . | . . . Non-combat . | . . . Combat . | . . . Robot Hacks Applied . | . . . Relay Couplers Released . | . . . Fabnet Peak Effective % . | . . . Robots Rewired . | . . . Allies Hacked . | . . . Hacks Repelled . | . . . Allies | -11 -10 -10 -------- Run | Yrd Mat Sub Total Allies . | . . . Largest Group . | . . . Highest-Rated Group . | . . . Highest-Rated Ally . | . . . Total Orders . | . . . Ally Attacks . | . . . Total Damage . | . . . Kills . | . . . Allies Corrupted . | . . . Allies Melted . | . . . Intel | -11 -10 -10 ------- Run | Yrd Mat Sub Active Infowar (turns) 2184 | 23 1206 955 Seismic 2184 | 23 1206 955 Robot Analysis Total . | . . . Derelict Logs Recovered 1 | . . 1 Drone Launches . | . . . Drone Recoveries . | . . . Exploration | -11 -10 -10 ------------- Run | Yrd Mat Sub Turns Passed 2454 | 101 1206 1147 Spaces Moved 1137 | 39 449 649 Core 4 | 4 . . Treads 1133 | 35 449 649 Legs . | . . . Wheels . | . . . Hover . | . . . Flight . | . . . Fastest Speed 50 | 50 160 160 Average Speed 159 | 148 160 160 Slowest Speed 160 | 160 160 160 Overloaded Moves . | . . . Propulsion Burnouts . | . . . Robots Hopped . | . . . Potential Cave-ins . | . . . Cave-ins Triggered 1 | . . 1 Exploration Rate (%) 38 | 3 59 54 Regions Visited 2 Branch Regions 1 Pre-discovered Areas 1 | . . 1 Known Exits Taken . | . . . Unknown Exits Taken 2 | 1 1 . Scrap Searched 1 | . . 1 Spaces Dug . | . . . Terrain Destroyed 78 | . . 78 Melee . | . . . Projectile . | . . . AOE 78 | . . 78 Terrain Rammed . | . . . Walls Destroyed . | . . . Machines Disabled . | . . . Actions | -11 -10 -10 --------- Run | Yrd Mat Sub Total 1617 | 58 862 697 Wait 341 | . 340 1 Move 1136 | 39 448 649 Hop . | . . . Pick Up 15 | 1 13 1 Fast Attach 7 | 7 . . Attach 4 | . . 4 Detach . | . . . Swap 10 | . 7 3 Drop 10 | . 9 1 Fire 61 | 11 37 13 Melee 25 | . . 25 Ram . | . . . Kick . | . . . Crush 8 | . 8 . Escape Stasis . | . . . Rewire . | . . . Trap . | . . . Miscellaneous . | . . . Route ------- -11/Scrapyard -10/Materials (discovered 4 exits: [*Mat x3] / [*Sub]) -10/Subcaves (discovered 2 exits: [*Mat] / [*Scr]) History --------- Turn | Location | Event 3 | -11/Scrapyard | Discovered new exit (range 15) 102 | -11/Scrapyard | Entered Materials 294 | -10/Materials | Discovered new exit (range 7) 312 | -10/Materials | Build established: Mutant 383 | -10/Materials | Discovered new exit (range 5) 587 | -10/Materials | Discovered new exit (range 5) 802 | -10/Materials | Derelicts attacked the area 1092 | -10/Materials | Discovered new exit (range 15) 1308 | -10/Materials | Entered Subcaves 1309 | -10/Subcaves | Approached by a straggling Scientist 1402 | -10/Subcaves | Core integrity fell below 50% 1551 | -10/Subcaves | A swath of the cavern ceiling suddenly collapsed 1653 | -10/Subcaves | Shifting Twisted Machinery released Flamer 1659 | -10/Subcaves | Shifting Twisted Machinery released Battle Cannon 1714 | -10/Subcaves | Learned location of Mines (-9) 1727 | -10/Subcaves | Scientist uncovered a shortcut to Scraptown 1937 | -10/Subcaves | Shifting Twisted Machinery released Sub. Machine Gun 1963 | -10/Subcaves | Shifting Twisted Machinery released Riot Gun 2061 | -10/Subcaves | Crushed by falling debris 2061 | -10/Subcaves | System corruption reached 10% 2092 | -10/Subcaves | Lost 3 parts (1p1n1w) 2246 | -10/Subcaves | Disturbed a concealed Subdweller 2369 | -10/Subcaves | Discovered new exit (range 12) 2444 | -10/Subcaves | Core integrity fell below 20% 2455 | -10/Subcaves | Destroyed self with Subdweller Shrapnel Launcher Last Messages --------------- 02267_ Subatomizers dissect the Riot Gun. 02290_ System corrupted: Substantial component data lost. 02317_ System corrupted: Matter fused (-9). 02345_ Subatomizers dissect the Disposable Heat Sink. 02346_ QU,EV#HW